[Event "Titled Tuesday Blitz May 9 Early 2023"]
[White "Bluebaum, Matthias"]
[Black "Sokolovsky, Yahli"]
[WhiteFideId "24651516"]
[BlackFideId "2820242"]
[WhiteElo "2639"]
[BlackElo "2389"]
[Result "1/2-1/2"]
[Round "11"]
[TimeControl "180+2"]
[Date "2023.05.09"]
[WhiteClock "0:00:11"]
[BlackClock "0:00:03"]

1. d4 {[%clk 0:03:00]}  d5 {[%clk 0:02:59]} 2. c4 {[%clk 0:03:01]}  e6 {[%clk 0:02:59]} 3. Nc3 {[%clk 0:03:01]}  c6 {[%clk 0:03:00]} 4. Nf3 {[%clk 0:03:00]}  Nd7 {[%clk 0:02:59]} 5. e4 {[%clk 0:02:59]}  dxe4 {[%clk 0:02:56]} 6. Nxe4 {[%clk 0:03:00]}  Ngf6 {[%clk 0:02:55]} 7. Qc2 {[%clk 0:03:00]}  Nxe4 {[%clk 0:02:52]} 8. Qxe4 {[%clk 0:03:01]}  Nf6 {[%clk 0:02:51]} 9. Qc2 {[%clk 0:03:01]}  c5 {[%clk 0:02:41]} 10. dxc5 {[%clk 0:02:34]}  Bxc5 {[%clk 0:02:42]} 11. Bd3 {[%clk 0:02:34]}  Bb4+ {[%clk 0:02:22]} 12. Bd2 {[%clk 0:02:33]}  Qa5 {[%clk 0:02:22]} 13. O-O {[%clk 0:02:30]}  Bxd2 {[%clk 0:02:23]} 14. Nxd2 {[%clk 0:02:31]}  Bd7 {[%clk 0:02:17]} 15. a3 {[%clk 0:02:26]}  Qh5 {[%clk 0:02:12]} 16. Ne4 {[%clk 0:02:21]}  Bc6 {[%clk 0:02:08]} 17. Nxf6+ {[%clk 0:02:09]}  gxf6 {[%clk 0:02:09]} 18. Be4 {[%clk 0:02:10]}  Rc8 {[%clk 0:01:59]} 19. Bxc6+ {[%clk 0:02:06]}  Rxc6 {[%clk 0:02:00]} 20. Rad1 {[%clk 0:02:06]}  Qg4 {[%clk 0:01:31]} 21. Qc3 {[%clk 0:01:56]}  O-O {[%clk 0:01:29]} 22. Qxf6 {[%clk 0:01:52]}  Rxc4 {[%clk 0:01:17]} 23. Rd3 {[%clk 0:01:52]}  Qg6 {[%clk 0:01:14]} 24. Rg3 {[%clk 0:01:38]}  Rg4 {[%clk 0:01:15]} 25. Rxg4 {[%clk 0:01:39]}  Qxg4 {[%clk 0:01:15]} 26. Rc1 {[%clk 0:01:39]}  Qg7 {[%clk 0:01:00]} 27. Qxg7+ {[%clk 0:01:20]}  Kxg7 {[%clk 0:01:01]} 28. Rc7 {[%clk 0:01:20]}  Rd8 {[%clk 0:00:53]} 29. g3 {[%clk 0:01:19]}  Rb8 {[%clk 0:00:43]} 30. Kg2 {[%clk 0:01:15]}  e5 {[%clk 0:00:43]} 31. Kf3 {[%clk 0:00:58]}  Kf6 {[%clk 0:00:43]} 32. Ke4 {[%clk 0:00:57]}  Ke6 {[%clk 0:00:44]} 33. g4 {[%clk 0:00:58]}  h6 {[%clk 0:00:43]} 34. f4 {[%clk 0:00:53]}  exf4 {[%clk 0:00:41]} 35. Kxf4 {[%clk 0:00:54]}  a6 {[%clk 0:00:38]} 36. h3 {[%clk 0:00:53]}  Kf6 {[%clk 0:00:31]} 37. a4 {[%clk 0:00:37]}  Kg7 {[%clk 0:00:25]} 38. Kf5 {[%clk 0:00:30]}  b5 {[%clk 0:00:17]} 39. a5 {[%clk 0:00:31]}  b4 {[%clk 0:00:16]} 40. Rc5 {[%clk 0:00:31]}  Rd8 {[%clk 0:00:15]} 41. Ke4 {[%clk 0:00:19]}  Rd2 {[%clk 0:00:13]} 42. Rc6 {[%clk 0:00:19]}  Rxb2 {[%clk 0:00:12]} 43. Rxa6 {[%clk 0:00:20]}  Rh2 {[%clk 0:00:04]} 44. Rb6 {[%clk 0:00:15]}  Rxh3 {[%clk 0:00:05]} 45. Rxb4 {[%clk 0:00:15]}  Ra3 {[%clk 0:00:05]} 46. Rb5 {[%clk 0:00:16]}  Kg6 {[%clk 0:00:05]} 47. Kf4 {[%clk 0:00:16]}  f6 {[%clk 0:00:03]} 48. Rc5 {[%clk 0:00:16]}  Rb3 {[%clk 0:00:03]} 49. Rd5 {[%clk 0:00:09]}  Ra3 {[%clk 0:00:03]} 50. Rb5 {[%clk 0:00:09]}  Ra4+ {[%clk 0:00:03]} 51. Kg3 {[%clk 0:00:10]}  Ra3+ {[%clk 0:00:03]} 52. Kf4 {[%clk 0:00:10]}  Ra4+ {[%clk 0:00:04]} 53. Kg3 {[%clk 0:00:11]}  Ra3+ {[%clk 0:00:03]} 54. Kf4 {[%clk 0:00:11]} 1/2-1/2


[Site "https://www.chess.com"]

[Event "Titled Tuesday Blitz May 9 Early 2023"]
[White "Livaic, Leon"]
[Black "Terry, Renato"]
[WhiteFideId "14531534"]
[BlackFideId "3803457"]
[WhiteElo "2522"]
[BlackElo "2575"]
[Result "0-1"]
[Round "11"]
[TimeControl "180+2"]
[Date "2023.05.09"]
[WhiteClock "0:00:56"]
[BlackClock "0:01:06"]

1. d4 {[%clk 0:02:59]}  e6 {[%clk 0:03:00]} 2. c4 {[%clk 0:03:00]}  Bb4+ {[%clk 0:03:00]} 3. Bd2 {[%clk 0:03:00]}  Qe7 {[%clk 0:03:00]} 4. Nf3 {[%clk 0:03:00]}  Nf6 {[%clk 0:03:00]} 5. e3 {[%clk 0:03:00]}  O-O {[%clk 0:03:00]} 6. Bxb4 {[%clk 0:03:00]}  Qxb4+ {[%clk 0:03:00]} 7. Qd2 {[%clk 0:03:01]}  Qxd2+ {[%clk 0:02:59]} 8. Nfxd2 {[%clk 0:03:01]}  d6 {[%clk 0:03:00]} 9. Nc3 {[%clk 0:03:01]}  e5 {[%clk 0:02:56]} 10. d5 {[%clk 0:02:48]}  a5 {[%clk 0:02:55]} 11. f3 {[%clk 0:02:43]}  Na6 {[%clk 0:02:55]} 12. Bd3 {[%clk 0:02:40]}  Nc5 {[%clk 0:02:55]} 13. Bc2 {[%clk 0:02:41]}  Bd7 {[%clk 0:02:55]} 14. b3 {[%clk 0:02:34]}  Rfb8 {[%clk 0:02:55]} 15. a4 {[%clk 0:02:29]}  c6 {[%clk 0:02:51]} 16. e4 {[%clk 0:02:29]}  Na6 {[%clk 0:02:47]} 17. O-O-O {[%clk 0:02:27]}  Kf8 {[%clk 0:02:43]} 18. g4 {[%clk 0:02:26]}  Ke7 {[%clk 0:02:43]} 19. h4 {[%clk 0:02:26]}  Rc8 {[%clk 0:02:41]} 20. Kb2 {[%clk 0:02:24]}  Nb4 {[%clk 0:02:38]} 21. Nf1 {[%clk 0:02:24]}  cxd5 {[%clk 0:02:33]} 22. exd5 {[%clk 0:02:23]}  h5 {[%clk 0:02:27]} 23. g5 {[%clk 0:02:22]}  Ne8 {[%clk 0:02:22]} 24. Ng3 {[%clk 0:02:19]}  g6 {[%clk 0:02:21]} 25. Rhf1 {[%clk 0:02:16]}  Nxc2 {[%clk 0:02:09]} 26. Kxc2 {[%clk 0:02:16]}  f5 {[%clk 0:02:10]} 27. f4 {[%clk 0:02:08]}  e4 {[%clk 0:02:10]} 28. Nge2 {[%clk 0:02:06]}  Nc7 {[%clk 0:02:10]} 29. Nd4 {[%clk 0:02:06]}  Na6 {[%clk 0:02:10]} 30. Rb1 {[%clk 0:02:00]}  Nc5 {[%clk 0:02:10]} 31. Nd1 {[%clk 0:01:56]}  Kd8 {[%clk 0:02:07]} 32. Ne3 {[%clk 0:01:56]}  Kc7 {[%clk 0:02:08]} 33. Kc3 {[%clk 0:01:52]}  b6 {[%clk 0:02:07]} 34. Ra1 {[%clk 0:01:42]}  Kb7 {[%clk 0:02:07]} 35. Rfb1 {[%clk 0:01:42]}  Nd3 {[%clk 0:02:07]} 36. Nec2 {[%clk 0:01:42]}  Nxf4 {[%clk 0:02:07]} 37. Kd2 {[%clk 0:01:35]}  Nd3 {[%clk 0:02:02]} 38. Na3 {[%clk 0:01:31]}  f4 {[%clk 0:01:55]} 39. Nab5 {[%clk 0:01:30]}  Bxb5 {[%clk 0:01:55]} 40. axb5 {[%clk 0:01:30]}  Nc5 {[%clk 0:01:51]} 41. Rf1 {[%clk 0:01:28]}  Rf8 {[%clk 0:01:51]} 42. Rae1 {[%clk 0:01:27]}  Rae8 {[%clk 0:01:51]} 43. Kc3 {[%clk 0:01:25]}  e3 {[%clk 0:01:45]} 44. Nf3 {[%clk 0:01:24]}  Re4 {[%clk 0:01:36]} 45. Re2 {[%clk 0:01:23]}  Rc8 {[%clk 0:01:34]} 46. Rd1 {[%clk 0:01:20]}  a4 {[%clk 0:01:28]} 47. Nd4 {[%clk 0:01:10]}  Nxb3 {[%clk 0:01:13]} 48. Nc6 {[%clk 0:01:11]}  f3 {[%clk 0:01:13]} 49. Ra2 {[%clk 0:01:10]}  e2 {[%clk 0:01:09]} 50. Rxa4 {[%clk 0:01:10]}  Na5 {[%clk 0:01:10]} 51. Rda1 {[%clk 0:00:56]}  e1=Q+ {[%clk 0:01:06]} 0-1


[Site "https://www.chess.com"]

[Event "Titled Tuesday Blitz May 9 Early 2023"]
[White "Kamsky, Gata"]
[Black "Matlakov, Maxim"]
[WhiteFideId "2000024"]
[BlackFideId "4168003"]
[WhiteElo "2660"]
[BlackElo "2666"]
[Result "1-0"]
[Round "11"]
[TimeControl "180+2"]
[Date "2023.05.09"]
[WhiteClock "0:00:50"]
[BlackClock "0:00:42"]

1. d4 {[%clk 0:03:00]}  d5 {[%clk 0:03:00]} 2. Bf4 {[%clk 0:02:55]}  c5 {[%clk 0:03:00]} 3. e3 {[%clk 0:02:55]}  Nc6 {[%clk 0:02:58]} 4. c3 {[%clk 0:02:56]}  cxd4 {[%clk 0:02:58]} 5. exd4 {[%clk 0:02:56]}  f6 {[%clk 0:02:58]} 6. Bb5 {[%clk 0:02:26]}  g5 {[%clk 0:02:53]} 7. Qh5+ {[%clk 0:02:23]}  Kd7 {[%clk 0:02:53]} 8. Bc1 {[%clk 0:02:18]}  Qe8 {[%clk 0:02:48]} 9. Qf3 {[%clk 0:02:11]}  e6 {[%clk 0:02:38]} 10. h4 {[%clk 0:02:10]}  gxh4 {[%clk 0:02:36]} 11. Rxh4 {[%clk 0:02:07]}  Bd6 {[%clk 0:02:36]} 12. Ne2 {[%clk 0:02:04]}  a6 {[%clk 0:02:35]} 13. Ba4 {[%clk 0:02:03]}  Kc7 {[%clk 0:02:34]} 14. Bf4 {[%clk 0:01:37]}  e5 {[%clk 0:02:32]} 15. Bg3 {[%clk 0:01:20]}  Be6 {[%clk 0:02:13]} 16. Nd2 {[%clk 0:01:18]}  Rd8 {[%clk 0:02:03]} 17. c4 {[%clk 0:01:18]}  Bb4 {[%clk 0:01:30]} 18. dxe5 {[%clk 0:01:12]}  Bxd2+ {[%clk 0:01:06]} 19. Kxd2 {[%clk 0:01:10]}  dxc4+ {[%clk 0:01:03]} 20. Ke1 {[%clk 0:01:09]}  f5 {[%clk 0:01:03]} 21. Bxc6 {[%clk 0:01:05]}  bxc6 {[%clk 0:00:58]} 22. Nd4 {[%clk 0:01:04]}  Bd5 {[%clk 0:00:56]} 23. e6+ {[%clk 0:01:03]}  Kb7 {[%clk 0:00:55]} 24. Qxf5 {[%clk 0:01:00]}  Ne7 {[%clk 0:00:55]} 25. Qe5 {[%clk 0:00:59]}  Ng6 {[%clk 0:00:53]} 26. Qc7+ {[%clk 0:00:59]}  Ka8 {[%clk 0:00:53]} 27. Qb6 {[%clk 0:00:58]}  Qe7 {[%clk 0:00:52]} 28. Qxa6+ {[%clk 0:00:58]}  Qa7 {[%clk 0:00:52]} 29. Qxa7+ {[%clk 0:00:58]}  Kxa7 {[%clk 0:00:53]} 30. Rh5 {[%clk 0:00:58]}  Bxg2 {[%clk 0:00:52]} 31. Rd1 {[%clk 0:00:57]}  c5 {[%clk 0:00:51]} 32. Rxc5 {[%clk 0:00:56]}  Rhe8 {[%clk 0:00:48]} 33. Rxc4 {[%clk 0:00:54]}  Bd5 {[%clk 0:00:47]} 34. Rc7+ {[%clk 0:00:53]}  Kb6 {[%clk 0:00:47]} 35. Rd2 {[%clk 0:00:50]}  Bxe6 {[%clk 0:00:42]} 36. Rc6+ {[%clk 0:00:50]} 1-0


[Site "https://www.chess.com"]

[Event "Titled Tuesday Blitz May 9 Early 2023"]
[White "Domingo Nunez, Ruben"]
[Black "Kramnik, Vladimir"]
[WhiteFideId "22245570"]
[BlackFideId "4101588"]
[WhiteElo "2404"]
[BlackElo "2703"]
[Result "0-1"]
[Round "11"]
[TimeControl "180+2"]
[Date "2023.05.09"]
[WhiteClock "0:00:00"]
[BlackClock "0:00:21"]

1. b3 {[%clk 0:03:00]}  e5 {[%clk 0:02:59]} 2. Bb2 {[%clk 0:03:01]}  Nc6 {[%clk 0:02:59]} 3. e3 {[%clk 0:03:02]}  Nf6 {[%clk 0:02:58]} 4. Bb5 {[%clk 0:03:02]}  Bd6 {[%clk 0:02:56]} 5. Nf3 {[%clk 0:02:57]}  e4 {[%clk 0:02:52]} 6. Bxc6 {[%clk 0:02:57]}  dxc6 {[%clk 0:02:50]} 7. Ne5 {[%clk 0:02:57]}  O-O {[%clk 0:02:45]} 8. d3 {[%clk 0:02:33]}  exd3 {[%clk 0:02:37]} 9. Qxd3 {[%clk 0:02:31]}  Qe7 {[%clk 0:02:29]} 10. Nf3 {[%clk 0:02:21]}  Rd8 {[%clk 0:02:26]} 11. Qe2 {[%clk 0:02:16]}  Ne4 {[%clk 0:02:18]} 12. Nbd2 {[%clk 0:02:05]}  Bb4 {[%clk 0:02:16]} 13. O-O-O {[%clk 0:01:51]}  Nc3 {[%clk 0:02:16]} 14. Bxc3 {[%clk 0:01:26]}  Bxc3 {[%clk 0:02:15]} 15. Nb1 {[%clk 0:01:26]}  Rxd1+ {[%clk 0:02:11]} 16. Rxd1 {[%clk 0:01:27]}  Bf6 {[%clk 0:02:11]} 17. Qd3 {[%clk 0:01:14]}  a5 {[%clk 0:02:02]} 18. a4 {[%clk 0:01:12]}  g6 {[%clk 0:01:58]} 19. Nd4 {[%clk 0:01:09]}  Bg4 {[%clk 0:01:46]} 20. f3 {[%clk 0:01:05]}  Bd7 {[%clk 0:01:46]} 21. Ne2 {[%clk 0:01:01]}  Rd8 {[%clk 0:01:42]} 22. e4 {[%clk 0:01:01]}  Qe5 {[%clk 0:01:35]} 23. Nbc3 {[%clk 0:00:46]}  Qxh2 {[%clk 0:01:32]} 24. Qe3 {[%clk 0:00:41]}  Qxg2 {[%clk 0:01:23]} 25. Rg1 {[%clk 0:00:41]}  Qh2 {[%clk 0:01:19]} 26. f4 {[%clk 0:00:35]}  Bc8 {[%clk 0:01:09]} 27. e5 {[%clk 0:00:34]}  Bg7 {[%clk 0:01:06]} 28. Ne4 {[%clk 0:00:33]}  Bf5 {[%clk 0:00:53]} 29. N2g3 {[%clk 0:00:11]}  Bxe4 {[%clk 0:00:43]} 30. Nxe4 {[%clk 0:00:12]}  Qh4 {[%clk 0:00:36]} 31. Ng5 {[%clk 0:00:04]}  Re8 {[%clk 0:00:29]} 32. Qf3 {[%clk 0:00:02]}  h5 {[%clk 0:00:22]} 33. Rg4 {[%clk 0:00:00]}  Qxg4 {[%clk 0:00:21]} 0-1


[Site "https://www.chess.com"]

[Event "Titled Tuesday Blitz May 9 Early 2023"]
[White "Mitrabha, Guha"]
[Black "Hasangatin, Ramil"]
[WhiteFideId "5057000"]
[BlackFideId "4122160"]
[WhiteElo "2507"]
[BlackElo "2279"]
[Result "1/2-1/2"]
[Round "11"]
[TimeControl "180+2"]
[Date "2023.05.09"]
[WhiteClock "0:00:56"]
[BlackClock "0:00:09"]

1. Nf3 {[%clk 0:03:00]}  d6 {[%clk 0:02:58]} 2. d4 {[%clk 0:02:58]}  Bg4 {[%clk 0:02:58]} 3. c4 {[%clk 0:02:54]}  Bxf3 {[%clk 0:02:58]} 4. exf3 {[%clk 0:02:55]}  c6 {[%clk 0:02:58]} 5. Nc3 {[%clk 0:02:55]}  g6 {[%clk 0:02:59]} 6. g3 {[%clk 0:02:55]}  Bg7 {[%clk 0:03:00]} 7. Bg2 {[%clk 0:02:56]}  Nf6 {[%clk 0:03:00]} 8. f4 {[%clk 0:02:56]}  O-O {[%clk 0:02:59]} 9. O-O {[%clk 0:02:57]}  e6 {[%clk 0:02:50]} 10. d5 {[%clk 0:02:56]}  exd5 {[%clk 0:02:47]} 11. cxd5 {[%clk 0:02:57]}  cxd5 {[%clk 0:02:48]} 12. Nxd5 {[%clk 0:02:57]}  Nc6 {[%clk 0:02:45]} 13. Be3 {[%clk 0:02:56]}  Nxd5 {[%clk 0:02:36]} 14. Qxd5 {[%clk 0:02:57]}  Qc7 {[%clk 0:02:31]} 15. Rab1 {[%clk 0:02:51]}  Rfd8 {[%clk 0:02:29]} 16. h4 {[%clk 0:02:49]}  Qa5 {[%clk 0:02:23]} 17. Qb3 {[%clk 0:02:47]}  Nd4 {[%clk 0:01:50]} 18. Qxb7 {[%clk 0:02:39]}  Nf5 {[%clk 0:01:43]} 19. Qf3 {[%clk 0:02:31]}  Qxa2 {[%clk 0:01:31]} 20. b4 {[%clk 0:02:29]}  Nxe3 {[%clk 0:01:26]} 21. Qxe3 {[%clk 0:02:29]}  Rab8 {[%clk 0:01:22]} 22. b5 {[%clk 0:02:27]}  d5 {[%clk 0:01:17]} 23. h5 {[%clk 0:02:27]}  d4 {[%clk 0:00:46]} 24. Qd3 {[%clk 0:02:25]}  Qe6 {[%clk 0:00:38]} 25. Rfe1 {[%clk 0:02:24]}  Qf6 {[%clk 0:00:25]} 26. hxg6 {[%clk 0:02:23]}  hxg6 {[%clk 0:00:25]} 27. Bf3 {[%clk 0:02:23]}  Re8 {[%clk 0:00:22]} 28. Rec1 {[%clk 0:02:22]}  Re7 {[%clk 0:00:19]} 29. Rc6 {[%clk 0:02:21]}  Qf5 {[%clk 0:00:17]} 30. Qxf5 {[%clk 0:02:19]}  gxf5 {[%clk 0:00:18]} 31. Rc5 {[%clk 0:02:20]}  Rd8 {[%clk 0:00:15]} 32. Rxf5 {[%clk 0:02:17]}  Red7 {[%clk 0:00:16]} 33. Rd1 {[%clk 0:02:14]}  d3 {[%clk 0:00:16]} 34. Kg2 {[%clk 0:02:14]}  d2 {[%clk 0:00:16]} 35. Rc5 {[%clk 0:02:14]}  Bd4 {[%clk 0:00:14]} 36. Rg5+ {[%clk 0:02:12]}  Bg7 {[%clk 0:00:15]} 37. Rc5 {[%clk 0:02:11]}  Bd4 {[%clk 0:00:14]} 38. Rc2 {[%clk 0:02:11]}  Bb6 {[%clk 0:00:14]} 39. Be4 {[%clk 0:02:12]}  Kg7 {[%clk 0:00:14]} 40. Kf3 {[%clk 0:02:12]}  Kf6 {[%clk 0:00:14]} 41. Ke2 {[%clk 0:02:07]}  Rd4 {[%clk 0:00:13]} 42. f3 {[%clk 0:02:05]}  Ba5 {[%clk 0:00:09]} 43. g4 {[%clk 0:02:04]}  Kg7 {[%clk 0:00:08]} 44. Rc5 {[%clk 0:02:03]}  Re8 {[%clk 0:00:06]} 45. Rg5+ {[%clk 0:01:56]}  Kf6 {[%clk 0:00:06]} 46. Rf5+ {[%clk 0:01:56]}  Kg7 {[%clk 0:00:06]} 47. Kf2 {[%clk 0:01:56]}  Bb6 {[%clk 0:00:06]} 48. Kg3 {[%clk 0:01:55]}  Rc8 {[%clk 0:00:05]} 49. Rg5+ {[%clk 0:01:43]}  Kf6 {[%clk 0:00:04]} 50. Rh5 {[%clk 0:01:27]}  Rc1 {[%clk 0:00:04]} 51. g5+ {[%clk 0:01:27]}  Ke7 {[%clk 0:00:03]} 52. Rhh1 {[%clk 0:01:26]}  Rxd1 {[%clk 0:00:03]} 53. Rxd1 {[%clk 0:01:27]}  Ba5 {[%clk 0:00:03]} 54. Kf2 {[%clk 0:01:25]}  Rb4 {[%clk 0:00:04]} 55. f5 {[%clk 0:01:19]}  Rxb5 {[%clk 0:00:03]} 56. f4 {[%clk 0:01:18]}  Rc5 {[%clk 0:00:02]} 57. f6+ {[%clk 0:01:16]}  Ke8 {[%clk 0:00:03]} 58. Bf3 {[%clk 0:01:06]}  Rc1 {[%clk 0:00:03]} 59. Ke3 {[%clk 0:01:06]}  Rxd1 {[%clk 0:00:03]} 60. Bxd1 {[%clk 0:01:06]}  Kf8 {[%clk 0:00:04]} 61. Ke4 {[%clk 0:01:03]}  Bc7 {[%clk 0:00:04]} 62. Bb3 {[%clk 0:01:03]}  Bb6 {[%clk 0:00:04]} 63. Ba4 {[%clk 0:01:02]}  Ba5 {[%clk 0:00:04]} 64. Kf3 {[%clk 0:01:02]}  Bc3 {[%clk 0:00:04]} 65. Kg4 {[%clk 0:01:03]}  Bd4 {[%clk 0:00:05]} 66. Kg3 {[%clk 0:01:01]}  Bc3 {[%clk 0:00:05]} 67. Bb3 {[%clk 0:01:00]}  Bd4 {[%clk 0:00:05]} 68. Kf3 {[%clk 0:00:59]}  Bc3 {[%clk 0:00:06]} 69. Ke4 {[%clk 0:01:00]}  Bb4 {[%clk 0:00:06]} 70. Kd4 {[%clk 0:00:58]}  Ba5 {[%clk 0:00:05]} 71. f5 {[%clk 0:00:55]}  Bd8 {[%clk 0:00:03]} 72. Kd3 {[%clk 0:00:53]}  Ba5 {[%clk 0:00:01]} 73. g6 {[%clk 0:00:52]}  Bd8 {[%clk 0:00:02]} 74. Kxd2 {[%clk 0:00:46]}  Bxf6 {[%clk 0:00:02]} 75. Bxf7 {[%clk 0:00:47]}  Kg7 {[%clk 0:00:02]} 76. Be6 {[%clk 0:00:47]}  Be5 {[%clk 0:00:02]} 77. Kd3 {[%clk 0:00:48]}  Bf6 {[%clk 0:00:03]} 78. Kc4 {[%clk 0:00:49]}  Bb2 {[%clk 0:00:04]} 79. Kb5 {[%clk 0:00:50]}  Bf6 {[%clk 0:00:04]} 80. Ka6 {[%clk 0:00:51]}  Be5 {[%clk 0:00:05]} 81. Kxa7 {[%clk 0:00:52]}  Bf6 {[%clk 0:00:06]} 82. Kb6 {[%clk 0:00:52]}  Be5 {[%clk 0:00:06]} 83. Kc5 {[%clk 0:00:53]}  Bf6 {[%clk 0:00:07]} 84. Kc4 {[%clk 0:00:53]}  Bb2 {[%clk 0:00:07]} 85. Kd5 {[%clk 0:00:54]}  Bf6 {[%clk 0:00:08]} 86. Kc4 {[%clk 0:00:54]}  Bb2 {[%clk 0:00:08]} 87. Kd5 {[%clk 0:00:55]}  Bf6 {[%clk 0:00:09]} 88. Kc4 {[%clk 0:00:56]} 1/2-1/2


[Site "https://www.chess.com"]

[Event "Titled Tuesday Blitz May 9 Early 2023"]
[White "Molina, Roberto Junio Brito"]
[Black "Kollars, Dmitrij"]
[WhiteFideId "2109450"]
[BlackFideId "12909572"]
[WhiteElo "2376"]
[BlackElo "2584"]
[Result "0-1"]
[Round "11"]
[TimeControl "180+2"]
[Date "2023.05.09"]
[WhiteClock "0:00:00"]
[BlackClock "0:00:11"]

1. d4 {[%clk 0:03:00]}  Nf6 {[%clk 0:02:57]} 2. Nf3 {[%clk 0:03:01]}  d5 {[%clk 0:02:57]} 3. e3 {[%clk 0:03:02]}  c5 {[%clk 0:02:57]} 4. c3 {[%clk 0:03:02]}  Nc6 {[%clk 0:02:56]} 5. Nbd2 {[%clk 0:03:02]}  cxd4 {[%clk 0:02:55]} 6. exd4 {[%clk 0:03:02]}  Qc7 {[%clk 0:02:55]} 7. Bd3 {[%clk 0:03:02]}  Bg4 {[%clk 0:02:54]} 8. O-O {[%clk 0:03:02]}  e6 {[%clk 0:02:53]} 9. Qe1 {[%clk 0:03:02]}  Bd6 {[%clk 0:02:52]} 10. h3 {[%clk 0:03:02]}  Bh5 {[%clk 0:02:51]} 11. a4 {[%clk 0:03:02]}  Bg6 {[%clk 0:02:48]} 12. Qe2 {[%clk 0:03:01]}  a6 {[%clk 0:02:43]} 13. Re1 {[%clk 0:02:57]}  Bxd3 {[%clk 0:02:43]} 14. Qxd3 {[%clk 0:02:57]}  O-O {[%clk 0:02:44]} 15. Nb3 {[%clk 0:02:54]}  Ne4 {[%clk 0:02:44]} 16. Be3 {[%clk 0:02:52]}  f5 {[%clk 0:02:42]} 17. a5 {[%clk 0:02:44]}  h6 {[%clk 0:02:39]} 18. Re2 {[%clk 0:02:42]}  g5 {[%clk 0:02:39]} 19. Ne1 {[%clk 0:02:39]}  Rae8 {[%clk 0:02:34]} 20. Bd2 {[%clk 0:02:32]}  h5 {[%clk 0:02:31]} 21. Nc2 {[%clk 0:02:29]}  g4 {[%clk 0:02:29]} 22. h4 {[%clk 0:02:26]}  g3 {[%clk 0:02:25]} 23. f3 {[%clk 0:02:26]}  Qe7 {[%clk 0:02:16]} 24. Kf1 {[%clk 0:02:01]}  Qxh4 {[%clk 0:02:15]} 25. Qe3 {[%clk 0:01:59]}  e5 {[%clk 0:01:46]} 26. Qg1 {[%clk 0:01:53]}  Nf2 {[%clk 0:01:30]} 27. dxe5 {[%clk 0:01:47]}  Nxe5 {[%clk 0:01:29]} 28. Ncd4 {[%clk 0:01:31]}  Qf6 {[%clk 0:01:09]} 29. Be3 {[%clk 0:01:23]}  Nfd3 {[%clk 0:01:07]} 30. Rd1 {[%clk 0:01:19]}  f4 {[%clk 0:01:05]} 31. Bc1 {[%clk 0:01:18]}  Nf2 {[%clk 0:01:01]} 32. Rxf2 {[%clk 0:01:16]}  gxf2 {[%clk 0:01:00]} 33. Qxf2 {[%clk 0:01:17]}  Nc4 {[%clk 0:00:58]} 34. Ne2 {[%clk 0:01:12]}  Qf5 {[%clk 0:00:49]} 35. Qd4 {[%clk 0:01:05]}  Re6 {[%clk 0:00:26]} 36. Qxd5 {[%clk 0:01:02]}  Qxd5 {[%clk 0:00:27]} 37. Rxd5 {[%clk 0:01:03]}  Rfe8 {[%clk 0:00:28]} 38. Nbd4 {[%clk 0:01:03]}  Re5 {[%clk 0:00:27]} 39. Rxe5 {[%clk 0:01:00]}  Bxe5 {[%clk 0:00:28]} 40. b3 {[%clk 0:00:48]}  Nxa5 {[%clk 0:00:28]} 41. Bxf4 {[%clk 0:00:44]}  Nc6 {[%clk 0:00:20]} 42. Nf5 {[%clk 0:00:32]}  Bxf4 {[%clk 0:00:18]} 43. Nxf4 {[%clk 0:00:32]}  Re5 {[%clk 0:00:19]} 44. Nd6 {[%clk 0:00:31]}  b5 {[%clk 0:00:18]} 45. Kf2 {[%clk 0:00:22]}  a5 {[%clk 0:00:18]} 46. c4 {[%clk 0:00:19]}  b4 {[%clk 0:00:16]} 47. Nd3 {[%clk 0:00:18]}  Re6 {[%clk 0:00:15]} 48. Nb7 {[%clk 0:00:16]}  Re7 {[%clk 0:00:14]} 49. Ndc5 {[%clk 0:00:15]}  a4 {[%clk 0:00:13]} 50. Nd6 {[%clk 0:00:01]}  a3 {[%clk 0:00:12]} 51. Nf5 {[%clk 0:00:01]}  a2 {[%clk 0:00:10]} 52. Nxe7+ {[%clk 0:00:00]}  Nxe7 {[%clk 0:00:11]} 0-1


[Site "https://www.chess.com"]

[Event "Titled Tuesday Blitz May 9 Early 2023"]
[White "Peng, Li Min"]
[Black "Nguyen, Ngoc Truong Son"]
[WhiteFideId "14112620"]
[BlackFideId "12401110"]
[WhiteElo "2436"]
[BlackElo "2556"]
[Result "1-0"]
[Round "11"]
[TimeControl "180+2"]
[Date "2023.05.09"]
[WhiteClock "0:00:41"]
[BlackClock "0:00:05"]

1. e4 {[%clk 0:03:00]}  c5 {[%clk 0:02:59]} 2. Nf3 {[%clk 0:02:59]}  Nc6 {[%clk 0:02:59]} 3. Bc4 {[%clk 0:02:55]}  e6 {[%clk 0:02:56]} 4. O-O {[%clk 0:02:56]}  d5 {[%clk 0:02:54]} 5. Bb5 {[%clk 0:02:55]}  dxe4 {[%clk 0:02:42]} 6. Ne5 {[%clk 0:02:54]}  Bd7 {[%clk 0:02:37]} 7. Bxc6 {[%clk 0:02:52]}  Bxc6 {[%clk 0:02:36]} 8. Nxc6 {[%clk 0:02:51]}  bxc6 {[%clk 0:02:37]} 9. Nc3 {[%clk 0:02:51]}  f5 {[%clk 0:02:32]} 10. f3 {[%clk 0:02:50]}  exf3 {[%clk 0:02:31]} 11. Qxf3 {[%clk 0:02:51]}  Qd7 {[%clk 0:02:31]} 12. d3 {[%clk 0:02:48]}  Nf6 {[%clk 0:02:13]} 13. Bg5 {[%clk 0:02:36]}  Be7 {[%clk 0:02:10]} 14. Rae1 {[%clk 0:02:34]}  O-O {[%clk 0:02:09]} 15. Kh1 {[%clk 0:02:27]}  Rae8 {[%clk 0:02:06]} 16. Bxf6 {[%clk 0:02:15]}  Bxf6 {[%clk 0:02:07]} 17. Na4 {[%clk 0:02:16]}  Qd5 {[%clk 0:02:03]} 18. b3 {[%clk 0:02:09]}  Qxf3 {[%clk 0:01:29]} 19. gxf3 {[%clk 0:02:09]}  Kf7 {[%clk 0:01:24]} 20. f4 {[%clk 0:02:05]}  Be7 {[%clk 0:01:10]} 21. Kg2 {[%clk 0:01:55]}  Bd6 {[%clk 0:01:08]} 22. Kf3 {[%clk 0:01:55]}  h6 {[%clk 0:01:04]} 23. h4 {[%clk 0:01:52]}  g6 {[%clk 0:01:01]} 24. Re2 {[%clk 0:01:51]}  Rg8 {[%clk 0:00:57]} 25. Rg1 {[%clk 0:01:37]}  e5 {[%clk 0:00:56]} 26. fxe5 {[%clk 0:01:36]}  Rxe5 {[%clk 0:00:57]} 27. Rxe5 {[%clk 0:01:30]}  Bxe5 {[%clk 0:00:58]} 28. Re1 {[%clk 0:01:15]}  Bd6 {[%clk 0:00:58]} 29. Nb2 {[%clk 0:01:16]}  g5 {[%clk 0:00:58]} 30. Nc4 {[%clk 0:01:16]}  g4+ {[%clk 0:00:29]} 31. Kf2 {[%clk 0:01:02]}  Bc7 {[%clk 0:00:16]} 32. Ne5+ {[%clk 0:01:03]}  Bxe5 {[%clk 0:00:15]} 33. Rxe5 {[%clk 0:01:04]}  Kg6 {[%clk 0:00:15]} 34. Kg3 {[%clk 0:01:01]}  Rf8 {[%clk 0:00:14]} 35. Kf4 {[%clk 0:00:59]}  Kh5 {[%clk 0:00:13]} 36. Kg3 {[%clk 0:00:59]}  Rf6 {[%clk 0:00:13]} 37. Rxc5 {[%clk 0:00:57]}  Kg6 {[%clk 0:00:12]} 38. Re5 {[%clk 0:00:57]}  h5 {[%clk 0:00:09]} 39. Kf4 {[%clk 0:00:55]}  Rd6 {[%clk 0:00:09]} 40. a4 {[%clk 0:00:51]}  Rd4+ {[%clk 0:00:08]} 41. Ke3 {[%clk 0:00:51]}  Rb4 {[%clk 0:00:08]} 42. Re6+ {[%clk 0:00:50]}  Kf7 {[%clk 0:00:08]} 43. Rh6 {[%clk 0:00:48]}  g3 {[%clk 0:00:08]} 44. Rxh5 {[%clk 0:00:45]}  Rg4 {[%clk 0:00:08]} 45. Rxf5+ {[%clk 0:00:42]}  Ke6 {[%clk 0:00:07]} 46. Rg5 {[%clk 0:00:42]}  Rxh4 {[%clk 0:00:07]} 47. Rxg3 {[%clk 0:00:43]}  a5 {[%clk 0:00:05]} 48. Rg5 {[%clk 0:00:41]} 1-0


[Site "https://www.chess.com"]